{"text_format":"1","workbook":"xlsx","n_sheets":1,"sheets":["yon"],"not_rendered":{"charts":0,"images":0,"macros":1,"external_links":0,"defined_names":0,"comments":0,"pivot_tables":0},"unopened":[],"bounds":{"document_bytes":16777216,"sheet_cells":100000,"rows_first":2000,"rows_last":500,"rows_between":2000,"halvings":0,"cell_chars":16384,"cell_head_chars":4096},"cells_cut":0,"cells_raw":0,"read":"whole","date_system":"1900"}

{"sheet":"yon","index":0,"n_rows":80,"n_cols":20,"rows_kept":80,"cut":false,"hidden":false,"merged":[[31,0,31,3],[31,7,31,10]]}
[null,"Rüzgar yönleri dönüşüm "]
[null,"Convert Wind Directions in Degrees to Compass Directions"]
[null,"Function YON(YONU)",null,null,null,null,{"$f":"360/16","v":22.5},{"$f":"G3/2","v":11.25},null,null,null,null,null,null,null,null,null,null,-5,{"$f":"yon(S3)","v":"hata var "}]
[null,"If YONU < 0 Then YON = \"hata var \": GoTo 10",null,null,null,null,{"$f":"360-$H$3","v":348.75},{"$f":"H3","v":11.25},null,"IF YONU <"," then yon =\"","N","\":goto 10",{"$f":"J4&H4&K4&L4&M4","v":"IF YONU <11.25 then yon =\"N\":goto 10"},null,null,null,null,0,{"$f":"yon(S4)","v":"N"}]
[null,"If YONU < 11,25 Then YON = \"N\": GoTo 10",null,null,null,null,{"$f":"H4","v":11.25},{"$f":"$G$3+H4","v":33.75},null,"IF YONU <"," then yon =\"","NNE","\":goto 10",{"$f":"J5&H5&K5&L5&M5","v":"IF YONU <33.75 then yon =\"NNE\":goto 10"},null,null,null,null,5,{"$f":"yon(S5)","v":"N"}]
[null,"If YONU < 33,75 Then YON = \"NNE\": GoTo 10",null,null,null,null,{"$f":"H5","v":33.75},{"$f":"$G$3+H5","v":56.25},null,"IF YONU <"," then yon =\"","NE","\":goto 10","IF YONU <56.25 then yon =\"NE\":goto 10",null,null,null,null,10,"N"]
[null,"If YONU < 56,25 Then YON = \"NE\": GoTo 10",null,null,null,null,56.25,78.75,null,"IF YONU <"," then yon =\"","ENE","\":goto 10","IF YONU <78.75 then yon =\"ENE\":goto 10",null,null,null,null,15,"NNE"]
[null,"If YONU < 78,75 Then YON = \"ENE\": GoTo 10",null,null,null,null,78.75,101.25,null,"IF YONU <"," then yon =\"","E","\":goto 10","IF YONU <101.25 then yon =\"E\":goto 10",null,null,null,null,20,"NNE"]
[null,"If YONU < 101,25 Then YON = \"E\": GoTo 10",null,null,null,null,101.25,123.75,null,"IF YONU <"," then yon =\"","ESE","\":goto 10","IF YONU <123.75 then yon =\"ESE\":goto 10",null,null,null,null,25,"NNE"]
[null,"If YONU < 123,75 Then YON = \"ESE\": GoTo 10",null,null,null,null,123.75,146.25,null,"IF YONU <"," then yon =\"","SE","\":goto 10","IF YONU <146.25 then yon =\"SE\":goto 10",null,null,null,null,30,"NNE"]
[null,"If YONU < 146,25 Then YON = \"SE\": GoTo 10",null,null,null,null,146.25,168.75,null,"IF YONU <"," then yon =\"","SSE","\":goto 10","IF YONU <168.75 then yon =\"SSE\":goto 10",null,null,null,null,35,"NE"]
[null,"If YONU < 168,75 Then YON = \"SSE\": GoTo 10",null,null,null,null,168.75,191.25,null,"IF YONU <"," then yon =\"","S","\":goto 10","IF YONU <191.25 then yon =\"S\":goto 10",null,null,null,null,40,"NE"]
[null,"If YONU < 191,25 Then YON = \"S\": GoTo 10",null,null,null,null,191.25,213.75,null,"IF YONU <"," then yon =\"","SSW","\":goto 10","IF YONU <213.75 then yon =\"SSW\":goto 10",null,null,null,null,45,"NE"]
[null,"If YONU < 213,75 Then YON = \"SSW\": GoTo 10",null,null,null,null,213.75,236.25,null,"IF YONU <"," then yon =\"","SW","\":goto 10","IF YONU <236.25 then yon =\"SW\":goto 10",null,null,null,null,50,"NE"]
[null,"If YONU < 236,25 Then YON = \"SW\": GoTo 10",null,null,null,null,236.25,258.75,null,"IF YONU <"," then yon =\"","WSW","\":goto 10","IF YONU <258.75 then yon =\"WSW\":goto 10",null,null,null,null,55,"NE"]
[null,"If YONU < 258,75 Then YON = \"WSW\": GoTo 10",null,null,null,null,258.75,281.25,null,"IF YONU <"," then yon =\"","W","\":goto 10","IF YONU <281.25 then yon =\"W\":goto 10",null,null,null,null,60,"ENE"]
[null,"If YONU < 281,25 Then YON = \"W\": GoTo 10",null,null,null,null,281.25,303.75,null,"IF YONU <"," then yon =\"","WNW","\":goto 10","IF YONU <303.75 then yon =\"WNW\":goto 10",null,null,null,null,65,"ENE"]
[null,"If YONU < 303,75 Then YON = \"WNW\": GoTo 10",null,null,null,null,303.75,326.25,null,"IF YONU <"," then yon =\"","NW","\":goto 10","IF YONU <326.25 then yon =\"NW\":goto 10",null,null,null,null,70,"ENE"]
[null,"If YONU < 326,25 Then YON = \"NW\": GoTo 10",null,null,null,null,326.25,348.75,null,"IF YONU <"," then yon =\"","NNW","\":goto 10","IF YONU <348.75 then yon =\"NNW\":goto 10",null,null,null,null,75,"ENE"]
[null,"If YONU < 348,75 Then YON = \"NNW\": GoTo 10",null,null,null,null,null,null,null,"IF YONU >"," then yon =\"","NNW","\":goto 10",{"$f":"J20&H19&K20&L20&M20","v":"IF YONU >348.75 then yon =\"NNW\":goto 10"},null,null,null,null,80,"E"]
[null,"If YONU > 360,1 Then YON = \"Hata var\": GoTo 10",null,null,null,null,null,null,null,null,null,null,null,null,null,null,null,null,85,"E"]
[null,"If YONU >= 348,75 Then YON = \"N\": GoTo 10",null,null,null,null,null,null,null,null,null,null,null,null,null,null,null,null,90,"E"]
[null,"If YONU = \"\" Then YON = \"hata var \": GoTo 10",null,null,null,null,null,null,null,null,null,null,null,null,null,null,null,null,95,"E"]
[null,null,null,null,null,null,null,null,null,null,null,null,null,null,null,null,null,null,100,"E"]
[null,"YON = \"HATA VAR\"",null,null,null,null,null,null,null,null,null,null,null,null,null,null,null,null,105,"ESE"]
[null,10,null,null,null,null,null,null,null,null,null,null,null,null,null,null,null,null,110,"ESE"]
[null,"End Function",null,null,null,null,null,null,null,null,null,null,null,null,null,null,null,null,115,"ESE"]
[null,null,null,null,null,null,null,null,null,null,null,null,null,null,null,null,null,null,120,"ESE"]
[null,null,null,null,null,null,null,null,null,null,null,null,null,null,null,null,null,null,125,"SE"]
[null,null,null,null,null,null,null,null,null,null,null,null,null,null,null,null,null,null,130,"SE"]
[null,null,null,null,null,null,null,null,null,null,null,null,null,null,null,null,null,null,135,"SE"]
["=YON1(KIRP(A2)) yonu dereceye cevirir",null,null,null,"=yon(a31)","=yon1(b31)",null,"=YON((İ3) 1, 2 ŞEKLİNDEKİ DEĞERLERİ HARFLERE ÇEVİRİR",null,null,null,null,null,null,null,null,null,null,140,"SE"]
[360,"N","Kuzey ",null,{"$f":"yon(TRIM(A33))","v":"N"},{"$f":"YON1(B33)","v":360},null,1,"N","Kuzey ",null,{"$f":"yon2(H33)","v":"N"},null,null,null,null,null,null,145,"SE"]
["22,5","NNE","Kuzey Kuzeydoğu ",null,{"$f":"yon(TRIM(A34))","v":"NNE"},{"$f":"YON1(B34)","v":22.5},null,2,"NNE","Kuzey Kuzeydoğu ",null,{"$f":"yon2(H34)","v":"NNE"},null,null,null,null,null,null,150,"SSE"]
[45,"NE","Kuzeydoğu ",null,"NE",45,null,3,"NE","Kuzeydoğu ",null,"NE",null,null,null,null,null,null,155,"SSE"]
["67,5","ENE","Doğu Kuzeydoğu ",null,"ENE",67.5,null,4,"ENE","Doğu Kuzeydoğu ",null,"ENE",null,null,null,null,null,null,160,"SSE"]
[90,"E","Doğu ",null,"E",90,null,5,"E","Doğu ",null,"E",null,null,null,null,null,null,165,"SSE"]
["112,5","ESE","Doğu Güneydoğu ",null,"ESE",112.5,null,6,"ESE","Doğu Güneydoğu ",null,"ESE",null,null,null,null,null,null,170,"S"]
[135,"SE","Güneydoğu ",null,"SE",135,null,7,"SE","Güneydoğu ",null,"SE",null,null,null,null,null,null,175,"S"]
["157,5","SSE","Güney Güneydoğu ",null,"SSE",157.5,null,8,"SSE","Güney Güneydoğu ",null,"SSE",null,null,null,null,null,null,180,"S"]
[180,"S","Güney ",null,"S",180,null,9,"S","Güney ",null,"S",null,null,null,null,null,null,185,"S"]
["202,5","SSW","Güney Güneybatı ",null,"SSW",202.5,null,10,"SSW","Güney Güneybatı ",null,"SSW",null,null,null,null,null,null,190,"S"]
[225,"SW","Güneybatı ",null,"SW",225,null,11,"SW","Güneybatı ",null,"SW",null,null,null,null,null,null,195,"SSW"]
["247,5","WSW","Batı Güneybatı ",null,"WSW",247.5,null,12,"WSW","Batı Güneybatı ",null,"WSW",null,null,null,null,null,null,200,"SSW"]
[270,"W","Batı ",null,"W",270,null,13,"W","Batı ",null,"W",null,null,null,null,null,null,205,"SSW"]
["292,5","WNW","Batı Kuzeybatı ",null,"WNW",292.5,null,14,"WNW","Batı Kuzeybatı ",null,"WNW",null,null,null,null,null,null,210,"SSW"]
[315,"NW","Kuzeybatı ",null,"NW",315,null,15,"NW","Kuzeybatı ",null,"NW",null,null,null,null,null,null,215,"SW"]
["337,5","NNW","Kuzey Kuzeybatı ",null,"NNW",337.5,null,16,"NNW","Kuzey Kuzeybatı ",null,"NNW",null,null,null,null,null,null,220,"SW"]
[null,null,null,null,null,null,null,null,null,null,null,null,null,null,null,null,null,null,225,"SW"]
["tarih","rüzgar hızı","yönü",null,null,null,null,null,null,null,null,null,null,null,null,null,null,null,230,"SW"]
["1,1,2000","0,6","WSW",null,"Function YON1(YON1U)",null,null,null,null,"Function YON(YONU)",null,null,null,null,null,null,null,null,235,"SW"]
["2,1,2000","3,2","NNE",null,"If YON1U = \"N\" Then YON1 = 360: GoTo 10",null,null,null,null,"If YONU = 1 Then YON = \"N\": GoTo 10",null,null,null,null,null,null,null,null,240,"WSW"]
["3,1,2000","2,7","NNE",null,"If YON1U = \"NNE\" Then YON1 = 22,5: GoTo 10",null,null,null,null,"If YONU = 2 Then YON = \"NNE\": GoTo 10",null,null,null,null,null,null,null,null,245,"WSW"]
["4,1,2000","3,8","NNE",null,"If YON1U = \"NE\" Then YON1 = 45: GoTo 10",null,null,null,null,"If YONU = 3 Then YON = \"NE\": GoTo 10",null,null,null,null,null,null,null,null,250,"WSW"]
["5,1,2000","5,5","N  ",null,"If YON1U = \"ENE\" Then YON1 = 67,5: GoTo 10",null,null,null,null,"If YONU = 4 Then YON = \"ENE\": GoTo 10",null,null,null,null,null,null,null,null,255,"WSW"]
["6,1,2000","1,9","NNE",null,"If YON1U = \"E\" Then YON1 = 90: GoTo 10",null,null,null,null,"If YONU = 5 Then YON = \"E\": GoTo 10",null,null,null,null,null,null,null,null,260,"W"]
["7,1,2000","0,2","W  ",null,"If YON1U = \"ESE\" Then YON1 = 112,5: GoTo 10",null,null,null,null,"If YONU = 6 Then YON = \"ESE\": GoTo 10",null,null,null,null,null,null,null,null,265,"W"]
["8,1,2000","6,7","NNE",null,"If YON1U = \"SE\" Then YON1 = 135: GoTo 10",null,null,null,null,"If YONU = 7 Then YON = \"SE\": GoTo 10",null,null,null,null,null,null,null,null,270,"W"]
["9,1,2000",5,"NNE",null,"If YON1U = \"SSE\" Then YON1 = 157,5: GoTo 10",null,null,null,null,"If YONU = 8 Then YON = \"SSE\": GoTo 10",null,null,null,null,null,null,null,null,275,"W"]
["10,1,2000",1,"N  ",null,"If YON1U = \"S\" Then YON1 = 180: GoTo 10",null,null,null,null,"If YONU = 9 Then YON = \"S\": GoTo 10",null,null,null,null,null,null,null,null,280,"W"]
["11,1,2000",0,"C  ",null,"If YON1U = \"SSW\" Then YON1 = 202,5: GoTo 10",null,null,null,null,"If YONU = 10 Then YON = \"SSW\": GoTo 10",null,null,null,null,null,null,null,null,285,"WNW"]
["12,1,2000","2,8","NNE",null,"If YON1U = \"SW\" Then YON1 = 225: GoTo 10",null,null,null,null,"If YONU = 11 Then YON = \"SW\": GoTo 10",null,null,null,null,null,null,null,null,290,"WNW"]
["13,1,2000",3,"N  ",null,"If YON1U = \"WSW\" Then YON1 = 247,5: GoTo 10",null,null,null,null,"If YONU = 12 Then YON = \"WSW\": GoTo 10",null,null,null,null,null,null,null,null,295,"WNW"]
["14,1,2000",0,"C  ",null,"If YON1U = \"W\" Then YON1 = 270: GoTo 10",null,null,null,null,"If YONU = 13 Then YON = \"W\": GoTo 10",null,null,null,null,null,null,null,null,300,"WNW"]
["15,1,2000","3,2","ENE",null,"If YON1U = \"WNW\" Then YON1 = 292,5: GoTo 10",null,null,null,null,"If YONU = 14 Then YON = \"WNW\": GoTo 10",null,null,null,null,null,null,null,null,305,"NW"]
["16,1,2000","0,4","NNE",null,"If YON1U = \"NW\" Then YON1 = 315: GoTo 10",null,null,null,null,"If YONU = 15 Then YON = \"NW\": GoTo 10",null,null,null,null,null,null,null,null,310,"NW"]
["17,1,2000",0,"C  ",null,"If YON1U = \"NNW\" Then YON1 = 337,5: GoTo 10",null,null,null,null,"If YONU = 16 Then YON = \"NNW\": GoTo 10",null,null,null,null,null,null,null,null,315,"NW"]
["18,1,2000","0,6","WSW",null,"If YON1U = \"\" Then YON1 = \"\": GoTo 10",null,null,null,null,"If YONU = 0 Then YON = \"\": GoTo 10",null,null,null,null,null,null,null,null,320,"NW"]
["19,1,2000","0,2","SW ",null,"YON1 = \"\"",null,null,null,null,"YON = \"HATA VAR\"",null,null,null,null,null,null,null,null,325,{"$f":"yon(S69)","v":"NW"}]
["20,1,2000","0,5","WNW",null,10,null,null,null,null,10,null,null,null,null,null,null,null,null,330,"NNW"]
["21,1,2000",1,"W  ",null,"End Function",null,null,null,null,"End Function",null,null,null,null,null,null,null,null,335,"NNW"]
[null,null,null,null,null,null,null,null,null,null,null,null,null,null,null,null,null,null,340,"NNW"]
[null,null,null,null,null,null,null,null,null,null,null,null,null,null,null,null,null,null,345,"NNW"]
[null,null,null,null,null,null,null,null,null,null,null,null,null,null,null,null,null,null,350,"N"]
[null,null,null,null,null,null,null,null,null,null,null,null,null,null,null,null,null,null,355,"N"]
[null,null,null,null,null,null,null,null,null,null,null,null,null,null,null,null,null,null,360,"N"]
[null,null,null,null,null,null,null,null,null,null,null,null,null,null,null,null,null,null,365,"Hata var"]
[null,null,null,null,null,null,null,null,null,null,null,null,null,null,null,null,null,null,370,"Hata var"]
[null,null,null,null,null,null,null,null,null,null,null,null,null,null,null,null,null,null,375,"Hata var"]
[null,null,null,null,null,null,null,null,null,null,null,null,null,null,null,null,null,null,380,"Hata var"]